Cogmind - Beta 11.1 @@@ ROGUE MODE // 2022.12.15 @ 11:26:02 Player: Themeralderp Result: Destroyed self via exploding Fusion Modulator Performance ------------- Evolutions (1) 500 Regions Visited (2) 400 Robots Destroyed (64) 320 Value Destroyed (1315) 1315 Prototype IDs (7) 140 Alien Tech Used (0) 0 Bonus (69) 69 TOTAL SCORE: 2744 Bonus ------- High Alert Combat Kills 69 Cogmind --------- Core Integrity 0/400 Matter 300/300 Energy 280/280 System Corruption 10% Temperature Cool (12) Movement Walking (190) Ox1 Location -9/Materials Parts ------- > --- POWER (1) -------- Cooled Ion Engine > --- PROPULSION (4) --- Aluminum Leg Aluminum Leg Aluminum Leg > --- UTILITY (2) ------ Large Storage Unit Seismic Detector > --- WEAPON (2) ------- Improved EM Shotgun Beam Rifle > --- INVENTORY (15) --- Ion Engine Improved EM Shotgun Beam Rifle Beam Rifle Beam Rifle Improved Medium Laser Advanced Beam Cannon Advanced Beam Cannon Heavy Assault Rifle Mini Grenade Launcher Improved Datajack Hammer Peak State ------------ > --- POWER ------------ Cooled Ion Engine > --- PROPULSION ------- Aluminum Leg Aluminum Leg Aluminum Leg Aluminum Leg > --- UTILITY ---------- Large Storage Unit Particle Charger > --- WEAPON ----------- Improved EM Shotgun Particle Gun > --- INVENTORY -------- Cooled Ion Engine Light Nuclear Core Aluminum Leg Aluminum Leg Sensor Array Signal Interpreter Improved EM Shotgun Improved EM Shotgun Beam Rifle Beam Rifle Beam Rifle Improved Medium Laser Advanced Beam Cannon Improved Datajack Hammer [Rating: 19] Favorites ----------- Power Ion Engine Engine Ion Engine Power Core Light Nuclear Core Propulsion Aluminum Leg Leg Aluminum Leg Utility Medium Storage Unit Device Seismic Detector Storage Medium Storage Unit Processor Signal Interpreter Weapon Small Laser Energy Gun Small Laser Energy Cannon Advanced Beam Cannon Impact Weapon Hammer Build | -11 -10 -9 ------- Run | Scr Mat Mat Slots Evolved 2 | . . 2 Power . | . . . Propulsion 2 | . . 2 Utility . | . . . Weapon . | . . . Parts Attached 51 | 7 18 26 Power 7 | 1 3 3 Engine 5 | 1 2 2 Core 2 | . 1 1 Reactor . | . . . Propulsion 15 | 2 4 9 Treads . | . . . Leg 15 | 2 4 9 Wheel . | . . . Hover . | . . . Flight . | . . . Utility 9 | 2 1 6 Device 5 | 1 . 4 Storage 3 | 1 1 1 Processor 1 | . . 1 Hackware . | . . . Protection . | . . . Artifact . | . . . Weapon 20 | 2 10 8 Energy Gun 18 | 2 9 7 Energy Cannon 1 | . . 1 Ballistic Gun . | . . . Ballistic Cannon . | . . . Launcher . | . . . Special Weapon . | . . . Impact Weapon 1 | . 1 . Slashing Weapon . | . . . Piercing Weapon . | . . . Special Melee Weapon . | . . . Unidentified Prototypes 2 | . 1 1 Corrupted Parts 3 | . 2 1 System Corruption 16 | . 9 7 Parts Lost 12 | . 1 11 Power 3 | . 1 2 Propulsion 5 | . . 5 Utility 2 | . . 2 Weapon 2 | . . 2 Highest Loss Streak 7 | . 1 7 To Critical Strikes . | . . . Average Slot Usage (%) 94 | . 99 90 Engine 9 | . 13 6 Core 2 | . . 4 Leg 33 | . 28 38 Device 10 | . 14 7 Storage 12 | . 14 11 Energy Gun 22 | . 27 18 Energy Cannon 1 | . . 3 Naked Turns . | . . . Heaviest Build 38 | 13 22 38 Greatest Support 40 | 20 20 40 Greatest Overweight (x) 3 | . 1 3 Average Overweight (x) . | . . . Largest Inventory Capacity 15 | 8 10 15 Average Capacity 11 | 7 9 13 Most Carried 15 | 4 10 15 Average Carried 8 | 1 6 11 Final Capacity 15 | 8 10 15 Final Carried 12 | 1 9 12 Class Distribution -------------------- 55% | Mutant 44% | Scavenger-Mutant Dominant Class ---------------- Mutant | -10/Materials Scavenger-Mutant | -9/Materials Resources | -11 -10 -9 ----------- Run | Scr Mat Mat Matter Collected 786 | 136 292 358 Remotely . | . . . Salvage Created 2607 | 138 630 1839 Parts 139 | 14 30 95 Haulers Intercepted 5 | . 1 4 Recyclers Shooed 3 | 1 . 2 Parts Field Recycled . | . . . Retrieved Matter . | . . . Parts Self-Destructed . | . . . Prevented . | . . . Kills | -11 -10 -9 ------- Run | Scr Mat Mat Combat Hostiles Destroyed 34 | . 9 25 Guns 28 | . 9 19 Cannons 4 | . . 4 AOE 1 | . . 1 Classes Destroyed 11 | 2 5 4 Worker 3 | . 1 2 Builder 4 | . . 4 Tunneler 5 | 4 . 1 Hauler 5 | . 1 4 Recycler 8 | 1 3 4 Operator 1 | . . 1 Watcher 4 | . 2 2 Swarmer 7 | . 3 4 Grunt 22 | . 6 16 Brawler 1 | . . 1 Sentry 4 | . . 4 Best Kill Streak 8 | 5 3 8 Combat Bots Only 6 | . 3 6 Max Kills in Single Turn 2 | 1 1 2 Gunslinging . | . . . Exploded 1 | . . 1 Melee . | . . . Uniques/NPCs Destroyed . | . . . Combat | -11 -10 -9 -------- Run | Scr Mat Mat Damage Taken 2003 | . 412 1591 Core 553 | . 71 482 Absorbed by Shields . | . . . Regen/Repaired (Parts) 26 | . 26 . Core Remaining (%) 85 | 100 71 . Volleys Fired 122 | 7 43 72 Largest 2 | 2 2 2 Hottest 124 | 80 95 124 Shots Fired 230 | 14 84 132 Gun 198 | 14 84 100 Cannon 32 | . . 32 Launcher . | . . . Special . | . . . Kinetic . | . . . Thermal 167 | 14 69 84 Explosive . | . . . Electromagnetic 63 | . 15 48 Robot Hit Streak 25 | 8 14 25 Robot Miss Streak 8 | 1 8 4 Penetration Max . | . . . Secondary Targets 2 | . 1 1 Max Gunslinging Chain 1 | . 1 1 Shots Hit Robots 156 | 10 48 98 Core Hits 91 | 6 26 59 Critical Kills . | . . . Critical Parts Destroyed . | . . . Critical Strikes 4 | . 2 2 Burn 4 | . 2 2 Melee Attacks 3 | . 3 . Impact 3 | . 3 . Slashing . | . . . Piercing . | . . . Sneak Attacks 1 | . 1 . Combat Hostiles . | . . . Follow-up Attacks . | . . . Damage Inflicted 3347 | 107 810 2430 Guns 2371 | 107 709 1555 Cannons 552 | . . 552 Explosions 369 | . 46 323 Melee 46 | . 46 . Ramming 9 | . 9 . Kinetic . | . . . Thermal 2090 | 107 452 1531 Explosive . | . . . Electromagnetic 1202 | . 303 899 Impact 46 | . 46 . Slashing . | . . . Piercing . | . . . Highest Corruption 16 | . 16 10 Average Corruption 6 | . 6 7 Corruption Purged . | . . . Corruption Blocked . | . . . Effects 35 | . 20 15 Message Errors 8 | . 4 4 Matter Fused 12 | . 7 5 Heat Flow Errors 3 | . 3 . Energy Discharges 2 | . 1 1 Data Loss (minor) 4 | . 3 1 Data Loss (major) 1 | . . 1 Misfires 1 | . . 1 Alerts 1 | . 1 . Weapon Failures 3 | . 1 2 Overload Shots . | . . . Overflow Damage 43 | . 31 12 Projectiles 2 | . . 2 Explosions 20 | . 10 10 Melee 21 | . 21 . Knockbacks . | . . . Impact . | . . . Kinetic . | . . . Secondary . | . . . Self-Inflicted Damage 206 | . . 206 Shots 4 | . . 4 Rammed . | . . . Targets Rammed 1 | . 1 . Kicked 1 | . 1 . Crushed . | . . . Highest Temperature 358 | 54 288 358 Average Temperature 100 | 27 76 118 Received Heat Transfer 597 | . 156 441 Effects 1 | . . 1 Matter Decay 1 | . . 1 Siege Activations . | . . . Robots Corrupted . | . . . Combat Hostiles . | . . . Parts Fried 6 | . 4 2 Impact Corruptions 1 | . 1 . Robots Melted 1 | . . 1 Combat Hostiles 1 | . . 1 Parts Melted 7 | . 2 5 Heat Transferred 4409 | 250 1217 2942 Parts Sabotaged . | . . . Parts Stolen . | . . . Parts Stripped . | . . . Power Chain Reactions 9 | . 2 7 Missiles Intercepted . | . . . Alert | -11 -10 -9 ------- Run | Scr Mat Mat Peak Influence 612 | 25 207 612 Initial 87 | . 16 87 Average 196 | 6 71 322 Maximum Alert Level 2 | . 1 2 Low Security (%) 54 | 100 93 16 Level 1 30 | . 6 55 Level 2 14 | . . 27 Level 3 . | . . . Level 4 . | . . . Level 5 . | . . . High Security . | . . . Max Security . | . . . Squads Dispatched 7 | . 3 4 Investigation 3 | . 3 . Extermination . | . . . Reinforcement 4 | . . 4 Assault . | . . . Garrison . | . . . Intercept . | . . . Searches Triggered . | . . . Construction Impeded 1 | . . 1 Haulers Reinforced . | . . . Active Scanning Responses . | . . . Cargo Convoy Interrupts . | . . . Stealth | -11 -10 -9 --------- Run | Scr Mat Mat Distress Signals 3 | . . 3 Communications Jammed . | . . . Distress Signals . | . . . Times Spotted 56 | . 16 40 Peak Tracking Total 9 | . 3 9 Tactical Retreats 4 | . 1 3 Traps | -11 -10 -9 ------- Run | Scr Mat Mat Traps Triggered 4 | . 4 . Indirectly . | . . . Trap Hack Attempts . | . . . Triggered . | . . . Disarmed . | . . . Reprogrammed . | . . . Reused . | . . . Traps Extracted . | . . . Installed . | . . . Triggered . | . . . Machines | -11 -10 -9 ---------- Run | Scr Mat Mat Machines Disabled 2 | . 1 1 Max in Single Turn 1 | . 1 1 Machines Sabotaged . | . . . Garrisons Compromised . | . . . Overloaded Fab Kills . | . . . Hacking | -11 -10 -9 --------- Run | Scr Mat Mat Machines Accessed 14 | . 9 5 Terminals 10 | . 6 4 Fabricators . | . . . Repair Stations 1 | . 1 . Recycling Units 3 | . 2 1 Scanalyzers . | . . . Garrison Access . | . . . Total Hacks 54 | . 30 24 Successful 23 | . 12 11 Failed 30 | . 18 12 Catastrophic 5 | . 2 3 Database Lockouts 1 | . . 1 Manual 33 | . 23 10 Terminals 44 | . 24 20 Fabricators . | . . . Repair Stations 2 | . 2 . Recycling Units 8 | . 4 4 Scanalyzers . | . . . Garrison Access . | . . . Terminal Hacks 18 | . 9 9 Robot Analysis 5 | . 3 2 Prototype ID Bank 3 | . 2 1 Branch Access Points 2 | . 1 1 Terminal Index 2 | . 1 1 Recycling Unit Index 1 | . 1 . Recall Reinforcements 1 | . . 1 Hauler Manifests 1 | . . 1 Zone Layout 3 | . 1 2 Fabricator Hacks . | . . . Repair Station Hacks 2 | . 2 . Scan Component 1 | . 1 . Repair 1 | . 1 . Recycling Unit Hacks 2 | . . 2 Retrieve Components 2 | . . 2 Scanalyzer . | . . . Garrison Access Hacks . | . . . Unauthorized Hacks 1 | . 1 . Terminals . | . . . Fabricators . | . . . Repair Stations . | . . . Recycling Units 1 | . 1 . Tunnel 1 | . 1 . Scanalyzers . | . . . Garrison Access . | . . . Data Cores Recovered . | . . . Used . | . . . Hacking Detections 13 | . 8 5 Full Trace Events 2 | . 2 . Feedback Events . | . . . Feedback Blocked . | . . . Robot Schematics Acquired . | . . . Robots Built . | . . . Authchips . | . . . Time . | . . . Total Robot Build Rating . | . . . Part Schematics Acquired . | . . . Parts Built . | . . . Authchips . | . . . Time . | . . . Total Part Build Rating . | . . . Parts Repaired 1 | . 1 . Time 26 | . 26 . Parts Recycled . | . . . Recycled Matter . | . . . Retrieved Matter . | . . . Retrieved Components 10 | . . 10 Parts Scanalyzed . | . . . Part Schematics Acquired . | . . . Parts Damaged . | . . . Bothacking | -11 -10 -9 ------------ Run | Scr Mat Mat Used RIF Installer . | . . . Robots Hacked . | . . . Non-combat . | . . . Combat . | . . . Robot Hacks Applied . | . . . Relay Couplers Released . | . . . Fabnet Peak Effective % . | . . . Robots Rewired . | . . . Allies Hacked . | . . . Hacks Repelled . | . . . Allies | -11 -10 -9 -------- Run | Scr Mat Mat Total Allies . | . . . Largest Group . | . . . Highest-Rated Group . | . . . Highest-Rated Ally . | . . . Total Orders . | . . . Ally Attacks . | . . . Total Damage . | . . . Kills . | . . . Allies Corrupted . | . . . Allies Melted . | . . . Intel | -11 -10 -9 ------- Run | Scr Mat Mat Robot Analysis Total 5 | . 3 2 Derelict Logs Recovered . | . . . Drone Launches . | . . . Drone Recoveries . | . . . Exploration | -11 -10 -9 ------------- Run | Scr Mat Mat Turns Passed 2486 | 74 1158 1254 Spaces Moved 1353 | 35 639 679 Core 8 | 8 . . Treads . | . . . Legs 1345 | 27 639 679 Wheels . | . . . Hover . | . . . Flight . | . . . Fastest Speed 50 | 50 120 120 Average Speed 131 | 104 129 134 Slowest Speed 330 | 120 190 330 Overloaded Moves . | . . . Propulsion Burnouts . | . . . Robots Hopped . | . . . Cave-ins Triggered 1 | . . 1 Exploration Rate (%) 44 | 4 73 56 Regions Visited 2 Branch Regions . Pre-discovered Areas 1 | . 1 . Known Exits Taken . | . . . Unknown Exits Taken 2 | 1 1 . Scrap Searched . | . . . Spaces Dug 2 | . 2 . Terrain Destroyed 31 | . 7 24 Melee 2 | . 2 . Projectile 1 | . . 1 AOE 28 | . 5 23 Terrain Rammed . | . . . Walls Destroyed . | . . . Machines Disabled . | . . . Actions | -11 -10 -9 --------- Run | Scr Mat Mat Total 1831 | 59 881 891 Wait 190 | 1 137 52 Move 1351 | 34 638 679 Hop . | . . . Pick Up 74 | 9 27 38 Fast Attach . | . . . Attach 26 | 7 6 13 Detach 1 | . . 1 Swap 26 | . 12 14 Drop 37 | 1 14 22 Fire 122 | 7 43 72 Melee 3 | . 3 . Ram . | . . . Kick 1 | . 1 . Crush . | . . . Escape Stasis . | . . . Rewire . | . . . Trap . | . . . Miscellaneous . | . . . Route ------- -11/Scrapyard -10/Materials (discovered 4 exits: *Mat x2 / *Min x2) -9/Materials (discovered 4 exits: *Mat x2 / *Min / *Sto) History --------- Turn | Location | Event 4 | -11/Scrapyard | Discovered new exit (range 16) 75 | -11/Scrapyard | Entered Materials 126 | -10/Materials | Discovered new exit (range 11) 250 | -10/Materials | Discovered new exit (range 5) 318 | -10/Materials | Build established: Mutant 343 | -10/Materials | Identified exit to Mines 471 | -10/Materials | Repaired Sml. Laser 709 | -10/Materials | Discovered new exit (range 16) 1232 | -10/Materials | System corruption reached 10% 1233 | -10/Materials | Entered another Materials area 1233 | -9/Materials | Evolved 2 slots: Propulsion x2 1251 | -9/Materials | Central database locked down 1422 | -9/Materials | Build established: Scavenger-Mutant 1814 | -9/Materials | Discovered new exit (range 13) 1839 | -9/Materials | Identified exit to Materials 1949 | -9/Materials | Discovered new exit (range 14) 2021 | -9/Materials | Crushed by falling debris 2021 | -9/Materials | Core integrity fell below 50% 2103 | -9/Materials | Identified exit to Mines 2103 | -9/Materials | Identified exit to Storage 2183 | -9/Materials | System corruption reached 10% 2197 | -9/Materials | Core integrity fell below 20% 2247 | -9/Materials | Lost 7 parts (1p4n1u1w) 2456 | -9/Materials | Discovered exit to Materials (range 16) 2487 | -9/Materials | Destroyed self via exploding Fusion Modulator Last Messages --------------- M011. 02371_ K-01 Serf collects debris. 02394_ G-34 Mercenary destroyed. 02400_ Acquired 27 matter. 02404_ Acquired Aluminum Leg. 02406_ Acquired 10 matter. 02412_ >IYU5#IWERXZ3Y8LBR#E6G6W>8HV EUCXFHG 02420_ K-01 Serf destroyed. 02439_ System corrupted: Matter fused (-6). 02439_ T-07 Excavator destroyed. 02445_ Acquired Seismic Detector. 02448_ Dropped Terrain Scanner. 02450_ Acquired 16 matter. 02452_ K-01 Serf collects debris. 02456_ EXIT=FOUND: MATERIALS 02456_ K-01 Serf collects debris. 02481_ Acquired Mni. Grenade Launcher. 02484_ System corrupted: FCS attempts to trigger Beam Rifle. 02484_ System corrupted: Beam Rifle misfires. 02487_ Fusion Modulator explodes. Map ----- +----------------------------------------------------+ | ???????????? ????????????????# | | ??????????# ################ | | ??????????? % | | ??????????? > % | | ??????????? | | ??????????? ###########% | | ???????????# #??????????# % | | ???????????# ##?????????# | | ???????????# ######?????# | | ???????????# # ####### | | ???????????# # "% ### | | ???????????# # #######*%[#?# | | ???????????# # #??#####%#### | | ???????????# # ##?# %! | | ????????#??# # #??# """"""" | | ???????????# =# #??# """"""" | | ???????????# += #??# """"""" | | ???????????# |#! #??# """"""" | | ???????????# ######??# """"""" | | ???????????# ####????#?? | | ????######## !!##?#????? | | ???## # !#???????###### | | ???#; # !#???????#????? | | ???#; + !#????????????? | | ???#; # !#????????????? | | ???#; @ # !!###???????????? | | ???#; = !# ####?????????????? | | ???######### #????????????????? | | ???????????# #????????????????? | | ???????????# #????????????????? | | ???????????# #????????????????? | | ???????????? #????????????????? | | ???????????? < #????????????????? | | ???????????? #????????????????? | | ????????????####????????????????? | | ????????????????????????????????? | | ????????????????????????????????? | | ????????????????????????????????? | | ????????????????????????????????? | | ????????????????????????????????? | | ????????????????????????????????? | | ????????????????????????????????? | | ????????????????????????????????? | | ????????????????????????????????? | | ????????????????????????????????? | | ????????????????????????????????? | | ????????????????????????????????? | | ????????????????????????????????? | | ????????????????????????????????? | | | +----------------------------------------------------+ Best States ------------- Heat Dissipation 28 Energy Generation 14 Energy Capacity 280 Matter Stores 300 Matter Capacity 300 Sight Range 16 Terrain Scan Range 14 Terrain Scan Density 10 Evasion (%) 55 Particle Charging 15 Item Schematics ----------------- None Robot Schematics ------------------ None Fabricated ------------ Nothing Alien Tech Used ----------------- None Achievements -------------- None Challenges ------------ None Game ------ Seed CorruptionBoreInterrupter Manual? 0 Play Time 00:32:37 Cumulative 55.0 hours Start 2022.12.15 @ 10:53:23 End 2022.12.15 @ 11:26:02 Sessions 1 Manual Loads 0 Difficulty Rogue Special Mode None Game No. 33 Rogue 27 Adventurer 6 Explorer 0 Win Type - Total 0 Types 0/0/0/0/0/0/0/0/0 Lore% 44 Gallery% 46 Achievement% 37 Wizard Run 0 Options --------- ASCII 0 Keyboard 0 Movement Mouse Keybinds 0 Fullscreen 1 Font 18/SmallcapsGlow Map View 76x50 Tactical HUD 1 Map Filters NONE Filters NONE Steam 1 RUN: f2da8399-5ea0-46c7-a035-cf6cd4b5f334